bitfinex/quotes_ETHUSD_20250827
["timestamp","ask_amount","ask_price","bid_price","bid_amount"]
[1756305204055,11.29599983,4651.4,4651.3,1e-08]
[1756305204231,11.2753114,4651.4,4651.3,1e-08]
[1756305204437,5.81007525,4651.0,4650.9,1e-08]
[1756305204647,7.76952541,4651.0,4650.9,1e-08]
[1756305204851,12.12952541,4651.0,4650.9,1e-08]
[1756305205048,13.4768097,4651.0,4650.9,1e-08]
[1756305205426,5.81012148,4650.9,4650.8,1e-08]
[1756305205626,6.00937164,4650.9,4650.8,1e-08]
[1756305205856,10.48057164,4650.9,4650.8,1e-08]
[1756305206238,7.15733078,4650.9,4650.8,1e-08]
[1756305206670,0.6432093,4650.9,4650.8,1e-08]
[1756305206877,10.72881921,4650.9,4650.8,1e-08]
[1756305207044,10.37137164,4650.9,4650.8,1e-08]
[1756305207363,10.17212148,4650.9,4650.8,1e-08]
[1756305207563,6.00942228,4650.9,4650.8,1e-08]
[1756305207767,3.1993008,4650.9,4650.8,1e-08]
[1756305207924,4.38468843,4650.9,4650.8,1e-08]
[1756305208129,0.19926644,4650.9,4650.8,1e-08]
[1756305208428,2.15002902,4651.1,4650.8,1e-08]
[1756305208628,2.81012148,4650.9,4650.8,1e-08]
[1756305208868,12.02442926,4650.9,4650.8,1e-08]
[1756305209332,12.02742926,4650.9,4650.8,0.00100001]
[1756305209565,11.36642926,4650.9,4650.8,0.00100001]
[1756305209875,9.02642926,4650.9,4650.8,0.00100001]
[1756305210081,7.00342926,4650.9,4650.8,0.00100001]
[1756305210250,11.70115909,4650.9,4650.8,0.00100001]
[1756305210580,11.70035909,4650.9,4650.8,0.00100001]
[1756305210760,7.33935909,4650.9,4650.8,0.00100001]
[1756305210970,7.33935909,4650.9,4650.8,1e-08]
[1756305210971,13.3072979,4650.9,4650.8,1e-08]
[1756305211448,2.81035265,4650.4,4650.3,1e-08]
[1756305211658,10.39934886,4650.4,4650.3,1e-08]
[1756305211854,6.00966043,4650.4,4650.3,1e-08]
[1756305212054,10.38066043,4650.4,4650.3,1e-08]
[1756305212255,11.97057345,4650.4,4650.3,1e-08]
[1756305212636,6.34647914,4650.4,4650.3,1e-08]
[1756305212852,10.71147914,4650.4,4650.3,1e-08]
[1756305213264,10.71447914,4650.4,4650.3,1e-08]
[1756305213993,2.68647914,4650.4,4650.3,1e-08]
[1756305214158,4.89812649,4650.4,4650.3,1e-08]
[1756305214489,4.56130778,4650.4,4650.3,1e-08]
[1756305214797,6.71166043,4650.4,4650.3,1e-08]
[1756305214941,2.34966043,4650.4,4650.3,1e-08]
[1756305215146,4.56130778,4650.4,4650.3,1e-08]
[1756305215338,0.19930778,4650.4,4650.3,1e-08]
[1756305215540,0.33672969,4651.2,4650.3,1e-08]
[1756305215949,0.02068843,4651.1,4650.3,1e-08]
[1756305216150,0.19918324,4651.2,4650.3,1e-08]
[1756305216683,3.19918324,4651.2,4650.3,1e-08]
[1756305216838,0.93808022,4651.1,4650.3,1e-08]
[1756305217034,2.15035265,4650.4,4650.3,1e-08]
[1756305217258,0.19918324,4650.4,4650.3,1e-08]
[1756305217460,0.1072,4650.5,4650.3,1e-08]
[1756305218788,0.1072,4650.5,4650.4,2.15035265]
[1756305219088,0.1072,4650.5,4650.3,1e-08]
[1756305219983,2.17104108,4650.4,4650.3,1e-08]
[1756305220277,0.19961942,4650.4,4650.3,1e-08]
[1756305221789,0.1072,4650.5,4650.4,2.15035265]
[1756305221984,0.02,4651.8,4650.4,2.15035265]
[1756305221985,0.1072,4650.7,4650.6,2.15021946]
[1756305222185,0.3070851,4650.7,4650.6,2.15021946]
[1756305222493,0.1072,4650.9,4650.4,0.43007515]
[1756305222782,0.1072,4650.9,4650.8,2.15016771]
[1756305223392,0.19995405,4651.2,4650.5,2.15030641]
[1756305223680,0.02,4651.8,4650.8,0.1072]
[1756305223844,0.30722232,4651.7,4650.9,1.654]
[1756305224044,0.20002232,4651.6,4651.4,2.14987474]
[1756305224283,0.20002232,4651.5,4650.9,1.654]
[1756305224489,0.1072,4651.7,4651.5,2.1498288]
[1756305224688,0.20009021,4651.6,4650.9,2.26192]
[1756305224875,0.20009021,4651.5,4651.1,2.15002795]
[1756305225056,0.20009021,4651.4,4650.9,2.26192]
[1756305225260,0.20009021,4651.3,4650.9,1.654]
[1756305225597,0.1072,4651.1,4650.9,1.654]
[1756305225749,0.20009021,4651.0,4650.9,1.654]
[1756305225950,0.20009021,4651.0,4650.9,3.80412148]
[1756305228465,2.35086152,4650.4,4650.3,1e-08]
[1756305228803,2.80119065,4650.4,4650.3,1e-08]
[1756305229016,0.650838,4650.4,4650.3,1e-08]
[1756305229214,2.35108238,4650.4,4650.3,1e-08]
[1756305229374,0.20072973,4650.4,4650.3,1e-08]
[1756305230378,2.35108238,4650.4,4650.3,1e-08]
[1756305230713,0.20072973,4650.4,4650.3,1e-08]
[1756305230921,2.35108238,4650.4,4650.3,1e-08]
[1756305231421,0.20072973,4650.4,4650.3,1e-08]
[1756305232222,0.20072973,4650.4,4650.3,6.4623989]
[1756305232521,0.022,4651.8,4651.2,2.1499828]
[1756305232709,0.2028205,4651.3,4651.2,3.82548262]
[1756305232875,0.002,4651.3,4651.2,3.8039828]
[1756305233078,0.002,4651.3,4651.2,1.654]
[1756305233309,0.002,4651.3,4651.2,3.8039828]
[1756305233511,0.002,4651.3,4651.2,4.83018781]
[1756305233814,0.002,4651.3,4651.2,3.8039828]
[1756305234385,0.002,4651.3,4651.2,1.654]
[1756305234591,0.2026278,4651.3,4651.2,3.8039828]
[1756305234785,0.002,4651.3,4651.2,3.8039828]
[1756305234988,0.2018278,4651.3,4650.3,1e-08]
[1756305235224,0.22131623,4651.2,4650.3,1e-08]
[1756305235518,0.2006278,4651.1,4650.3,0.21504037]
[1756305235672,0.02068843,4652.2,4650.4,4.314]
[1756305235873,0.002,4652.3,4650.4,4.314]
[1756305235874,2.15150347,4652.3,4650.4,4.314]
[1756305236109,0.002,4652.3,4651.4,2.1498834]
[1756305236310,0.002,4652.3,4651.4,5.966]
[1756305236523,0.002,4652.3,4651.4,1.654]
[1756305236726,0.1072,4651.5,4651.4,1.654]
[1756305237023,0.1072,4651.5,4650.7,0.1072]
[1756305237324,0.002,4652.3,4650.7,5.964]
[1756305237500,0.002,4652.3,4650.9,2.15012148]
[1756305237702,0.002,4652.3,4652.2,2.14952065]
[1756305238198,0.002,4652.3,4652.2,2.25672065]
[1756305238712,0.002,4652.3,4652.2,2.27821585]
[1756305239097,0.002,4652.3,4652.2,2.43647556]
[1756305239292,0.002,4652.3,4652.2,6.79138209]
[1756305239531,0.002,4652.3,4652.2,11.07088689]
[1756305240435,0.02,4654.8,4653.7,2.14882781]
[1756305240606,0.02,4654.8,4653.7,8.12131608]
[1756305240807,0.02,4654.8,4653.7,8.20702781]
[1756305241149,0.02,4654.8,4653.7,9.2426206]
[1756305241308,0.02,4654.8,4653.7,12.2426206]
[1756305241309,1e-08,4653.8,4653.7,12.2426206]
[1756305241874,0.02,4654.8,4654.7,2.14836616]
[1756305242026,0.02,4654.8,4654.7,11.12084982]
[1756305242361,1e-08,4655.3,4655.2,2.14813541]
[1756305242565,1e-08,4655.3,4655.2,6.0444303]
[1756305242865,1e-08,4655.3,4655.2,9.76514895]
[1756305243162,1e-08,4655.3,4655.2,5.62775818]
[1756305243357,1e-08,4655.3,4655.2,9.92075818]
[1756305243942,1e-08,4655.3,4655.2,10.58075818]
[1756305244164,1e-08,4655.8,4655.7,2.14790471]
[1756305244333,1e-08,4655.8,4655.7,12.20797212]
[1756305244537,1e-08,4655.8,4655.7,11.63069308]
[1756305245158,1e-08,4655.8,4655.7,12.29069308]
[1756305245321,1e-08,4655.8,4655.7,7.99769308]
[1756305245525,1e-08,4655.8,4655.7,7.33769308]
[1756305245757,1e-08,4655.8,4655.7,11.62569308]
[1756305245962,1e-08,4655.8,4655.7,8.62569308]
[1756305246348,1e-08,4655.8,4655.7,1.7602]
[1756305246547,1e-08,4655.8,4655.7,8.19410471]
[1756305246935,1e-08,4655.8,4655.7,3.90810471]
[1756305247136,1e-08,4655.8,4655.7,8.19410471]
[1756305247341,1e-08,4655.8,4655.7,8.19210471]
[1756305247529,1e-08,4655.8,4655.7,7.72731518]
[1756305247725,1e-08,4655.8,4655.7,12.01031518]
[1756305247971,1e-08,4655.8,4655.7,7.72731518]
[1756305248566,1e-08,4655.8,4655.7,12.01431518]
[1756305248772,1e-08,4655.8,4655.7,11.19410471]
[1756305248930,1e-08,4655.8,4655.7,6.90810471]
[1756305249130,1e-08,4655.8,4655.7,8.19510471]
[1756305249466,1e-08,4655.8,4655.7,8.19410471]
[1756305249643,1e-08,4655.8,4655.7,1.7602]
[1756305249840,1e-08,4655.8,4655.7,8.19510471]
[1756305250041,1e-08,4655.8,4655.7,11.58592184]
[1756305250369,0.35620204,4657.8,4657.7,2.14698241]
[1756305250669,0.35620204,4657.8,4657.7,11.21465223]
[1756305250670,1e-08,4657.8,4657.7,11.21465223]
[1756305250854,1e-08,4658.8,4658.7,2.14652156]
[1756305251059,1e-08,4658.8,4658.7,1.652]
[1756305251368,1e-08,4658.8,4658.7,5.938]
[1756305252268,1e-08,4658.8,4658.7,1.652]
[1756305252569,1e-08,4658.8,4658.7,8.08052156]
[1756305252765,1e-08,4658.8,4658.7,1.652]
[1756305252965,1e-08,4658.8,4658.7,5.934]
[1756305253470,1e-08,4658.8,4658.7,4.39192156]
[1756305253767,1e-08,4658.8,4658.7,8.78012156]
[1756305253969,1e-08,4658.8,4658.7,4.49912156]
[1756305254172,1e-08,4658.8,4658.7,8.77912156]
[1756305254344,1e-08,4658.8,4658.7,6.0392]
[1756305254553,1e-08,4658.8,4658.7,6.0382]
[1756305254883,1e-08,4658.8,4658.7,3.90572156]
[1756305255047,1e-08,4658.8,4658.7,8.18272156]
[1756305255237,1e-08,4658.8,4658.7,8.18172156]
[1756305255437,1e-08,4658.8,4658.7,8.18072156]
[1756305255772,1e-08,4658.8,4658.7,9.21345324]
[1756305255971,1e-08,4658.8,4658.7,9.21045324]
[1756305256278,1e-08,4658.8,4658.7,4.93845324]
[1756305256453,1e-08,4658.8,4658.7,9.10125324]
[1756305256866,0.02,4659.8,4659.7,2.1460609]
[1756305257080,0.02,4659.8,4659.7,11.29166699]
[1756305257248,0.02,4659.8,4659.7,7.01266699]
[1756305257768,0.02,4659.8,4659.7,11.29166699]
[1756305258173,0.02,4659.8,4659.7,11.28766699]
[1756305258485,0.02,4659.8,4659.7,8.0700609]
[1756305259187,0.02,4659.8,4659.7,5.935]
[1756305259481,0.0192,4659.8,4659.7,8.0780609]
[1756305260070,0.0192,4659.8,4659.7,3.7970609]
[1756305260385,0.0192,4659.8,4659.7,8.0730609]
[1756305260549,0.0192,4659.8,4659.7,8.0720609]
[1756305261162,0.0192,4659.8,4659.7,3.7970609]
[1756305261593,0.0192,4659.8,4659.7,5.923]
[1756305261883,0.0192,4659.8,4659.7,1.651]
[1756305262462,0.0192,4659.8,4659.7,5.919]
[1756305262659,0.0192,4659.8,4659.7,1.651]
[1756305262864,2.14613726,4659.6,4659.5,4.269]
[1756305263053,0.23571846,4659.8,4659.5,4.268]
[1756305263253,0.0192,4659.8,4659.5,4.268]
[1756305263590,0.0192,4659.8,4659.6,4.304]
[1756305263755,0.0192,4659.8,4659.7,1.651]
[1756305264181,0.0192,4659.8,4659.7,5.955]
[1756305264389,0.0192,4659.8,4659.7,1.651]
[1756305264555,0.0192,4659.8,4659.3,3.911]
[1756305264758,0.0192,4659.8,4658.9,2.14642941]
[1756305264956,2.16675312,4659.7,4658.8,0.02]
[1756305265169,0.03988843,4659.8,4658.8,0.02]
[1756305265375,2.16522937,4659.8,4658.9,4.298]
[1756305265693,0.0192,4659.8,4659.0,6.44137851]
[1756305265894,0.0192,4659.8,4658.8,0.02]
[1756305266187,0.0192,4659.8,4659.7,2.1460609]
[1756305266374,0.0192,4659.8,4659.7,5.947]
[1756305266607,0.0192,4659.8,4659.7,8.0930609]
[1756305266774,0.0192,4659.8,4659.7,5.947]
[1756305266976,0.0192,4659.8,4659.7,1.651]
[1756305267176,0.0192,4659.8,4659.7,5.947]
[1756305268181,0.0212,4659.8,4659.7,8.90237133]
[1756305268584,0.0212,4659.8,4659.7,9.00957133]
[1756305269224,0.0212,4659.8,4659.7,8.99457133]
[1756305269575,0.0212,4659.8,4659.7,1.651]
[1756305269770,0.0212,4659.8,4659.7,8.0780609]
[1756305270176,0.0212,4659.8,4659.7,11.0780609]
[1756305270523,0.0212,4659.8,4659.7,6.7970609]
[1756305270810,1e-08,4659.8,4659.7,11.0750609]
[1756305271010,1e-08,4659.8,4659.7,12.39718201]
[1756305271718,1e-08,4659.8,4659.7,8.11918201]
[1756305272013,1e-08,4659.8,4659.7,12.40918201]
[1756305272605,1e-08,4659.8,4659.7,9.40918201]
[1756305272912,1e-08,4659.8,4659.7,8.0890609]
[1756305273087,1e-08,4659.8,4659.7,5.943]
[1756305273613,1e-08,4659.8,4659.7,5.941]
[1756305273909,2.14601485,4659.8,4659.7,4.29]
[1756305274132,2.14541631,4661.1,4659.7,4.29]
[1756305274133,0.66,4661.1,4659.7,4.29]
[1756305274304,2.14578858,4660.3,4659.7,4.29]
[1756305274509,2.14601485,4659.8,4659.7,4.29]
[1756305274704,2.42600206,4661.0,4659.7,4.29]
[1756305274905,2.42600206,4661.0,4659.0,1.651]
[1756305274906,2.80550837,4660.9,4659.0,1.651]
[1756305275117,2.14596469,4660.0,4659.1,4.284]
[1756305275393,0.28053703,4661.0,4659.2,0.02146291]
[1756305275593,2.14578201,4660.4,4659.2,2.1462912]
[1756305275793,3.0,4661.1,4658.2,1.651]
[1756305275794,0.66,4661.0,4658.2,1.651]
[1756305276015,0.66,4660.6,4658.3,1.537]
[1756305276450,0.66,4660.4,4658.4,2.691]
[1756305276591,0.66,4660.4,4658.2,1.651]
[1756305276592,0.66,4659.7,4658.2,1.651]
[1756305276930,0.66,4659.3,4657.8,3.163]
[1756305277107,0.66,4659.3,4657.8,0.02]
[1756305277629,2.14663334,4658.5,4657.8,0.02]
[1756305277851,1.651,4659.6,4657.8,0.02]
[1756305278048,3.79711216,4659.6,4657.9,0.4298]
[1756305278203,2.14667057,4658.4,4657.8,0.02]
[1756305278402,1.98709465,4659.6,4657.8,0.02]
[1756305278906,1.98709465,4659.6,4657.9,0.0214689]
[1756305279124,2.14586357,4660.2,4657.9,0.0214689]
[1756305279326,1.651,4660.8,4659.8,0.02]
[1756305279646,2.14596879,4659.9,4659.8,0.02]
[1756305279811,2.25316879,4659.9,4659.8,0.02]
[1756305280339,0.1072,4659.9,4659.8,0.02]
[1756305283229,2.25316879,4659.9,4659.8,0.02]
[1756305283536,0.1072,4659.9,4659.8,0.02]
[1756305283847,2.25236879,4659.9,4659.8,0.02]
[1756305284161,0.1064,4659.9,4659.8,0.02]
[1756305284534,2.37119198,4659.9,4659.8,0.02]
[1756305285561,2.14596879,4659.9,4659.8,0.02]
[1756305285748,3.0,4661.4,4659.8,0.02]
[1756305285955,3.0,4661.3,4659.8,0.02]
[1756305286261,0.002,4659.9,4659.8,0.02]
[1756305286464,2.14796879,4659.9,4659.8,0.02]
[1756305287061,0.002,4659.9,4659.8,0.02]
[1756305287267,2.14796879,4659.9,4659.8,0.02]
[1756305287825,0.002,4659.9,4659.8,0.02]
[1756305288027,2.14796879,4659.9,4659.8,0.02]
[1756305289162,2.57735405,4659.9,4659.8,0.02]
[1756305289550,0.002,4659.9,4659.8,0.02]
[1756305289768,0.002,4659.9,4659.8,2.16601485]
[1756305289965,0.002,4659.9,4659.8,2.18747499]
[1756305291027,0.002,4659.9,4659.8,2.16601485]
[1756305291862,0.002,4659.9,4659.8,6.41801485]
[1756305292167,0.002,4659.9,4659.8,7.43962605]
[1756305293691,0.002,4659.9,4659.8,3.18762605]
[1756305293970,0.002,4659.9,4659.8,6.40501485]
[1756305294474,0.002,4659.9,4659.8,2.16601485]
[1756305294625,0.002,4659.9,4659.8,6.40301485]
[1756305294827,1e-08,4660.4,4659.9,5.14596879]
[1756305295055,1e-08,4660.4,4660.1,2.14587669]
[1756305295270,1e-08,4660.4,4660.3,2.2529846]
[1756305295477,1e-08,4660.4,4660.3,6.4869846]
[1756305296033,1e-08,4660.4,4660.3,6.4849846]
[1756305297172,1e-08,4660.4,4660.3,6.3767846]
[1756305297733,1e-08,4660.4,4660.3,2.1457846]
[1756305297939,1e-08,4660.4,4660.3,4.226]
[1756305298159,1e-08,4660.4,4660.3,6.3717846]
[1756305298359,1e-08,4660.4,4660.3,2.1457846]
[1756305298577,1e-08,4660.4,4660.3,2.6821491]
[1756305298875,1e-08,4660.4,4660.3,6.9051491]
[1756305299173,1e-08,4660.4,4660.1,2.14586039]
[1756305299174,1e-08,4660.4,4660.0,4.225]
[1756305300073,1e-08,4660.4,4660.0,6.3709135]
[1756305300279,1e-08,4660.4,4659.8,0.02]
[1756305300879,2.14596879,4659.9,4659.8,0.02]
[1756305301173,5.8060609,4659.7,4659.6,1e-08]
[1756305301540,5.1460609,4659.7,4659.6,1e-08]
[1756305301760,2.1460609,4659.7,4659.6,1e-08]
[1756305302964,5.8060609,4659.7,4659.6,1e-08]
[1756305303165,5.8060609,4659.7,4659.2,1e-08]
[1756305303166,2.14624514,4659.3,4659.2,1e-08]
[1756305303370,6.60148701,4659.3,4659.2,1e-08]
[1756305303578,6.60148701,4659.3,4657.0,1.651]
[1756305303579,2.14689022,4657.9,4657.0,1.651]
[1756305303959,4.651,4658.8,4657.0,3.79826416]
[1756305304157,2.14689022,4657.9,4657.3,4.122]
[1756305304495,2.14689022,4657.9,4657.0,1.651]
[1756305305356,1.651,4658.8,4657.3,2.1471262]
[1756305305559,2.14657718,4658.6,4657.0,1.651]
[1756305305773,1.651,4658.8,4657.8,0.021]
[1756305305979,3.1651,4658.7,4657.8,0.021]
[1756305306169,0.66,4658.6,4657.8,0.021]
[1756305306382,2.14689022,4657.9,4657.8,0.021]
[1756305306576,3.1651,4658.7,4657.8,0.021]
[1756305306775,1.651,4658.8,4657.8,0.021]
[1756305306997,3.0,4659.3,4658.1,2.14675607]
[1756305307296,1.651,4659.6,4657.9,5.858]
[1756305307495,2.14633531,4659.2,4658.2,2.14674789]
[1756305307703,2.14628503,4659.3,4658.3,2.146699]
[1756305308004,2.14635175,4659.1,4658.8,0.02]
[1756305308164,0.33610237,4659.9,4658.8,0.02]
[1756305308371,0.33530237,4659.9,4659.0,2.14638334]
[1756305308578,1e-08,4660.4,4659.1,0.38388476]
[1756305308780,1e-08,4660.4,4659.2,0.02146291]
[1756305308982,1e-08,4660.4,4660.1,2.14587669]
[1756305309192,1e-08,4660.4,4660.1,11.13453545]
[1756305309390,1e-08,4660.4,4660.1,11.11307669]
[1756305309694,1e-08,4660.4,4660.1,12.43897945]
[1756305310370,1e-08,4660.4,4660.1,12.43697945]
[1756305310567,1e-08,4660.2,4660.1,12.43697945]
[1756305310769,0.02,4661.8,4661.7,2.14514018]
[1756305311108,0.02,4661.8,4661.7,8.02259158]
[1756305311266,0.02,4661.8,4661.7,4.97006869]
[1756305311463,0.02,4661.8,4661.7,9.17606869]
[1756305311669,0.02,4661.8,4661.7,4.97006869]
[1756305311862,0.02,4661.8,4661.7,4.81292085]
[1756305312064,0.02,4661.8,4661.7,8.00014018]
[1756305312305,0.02,4661.8,4661.7,3.79614018]
[1756305312604,0.02,4661.8,4661.7,1.651]
[1756305314200,2.16509416,4661.8,4661.7,1.651]
[1756305314620,2.16509416,4661.8,4660.1,1.32590276]
[1756305314621,0.45100602,4661.8,4658.8,0.02]
[1756305314770,2.1456476,4660.6,4659.7,2.14605855]
[1756305315105,2.14514018,4661.7,4659.8,0.328]
[1756305315311,0.45100602,4661.8,4659.8,0.328]
[1756305315312,0.02,4661.8,4660.1,2.14587669]
[1756305315468,0.02,4661.8,4659.9,1.651]
[1756305315469,0.02,4661.8,4660.2,0.0214583]
[1756305315665,2.14516674,4661.7,4660.8,2.14554609]
[1756305315870,0.02,4661.8,4660.9,1.65]
[1756305316214,0.02,4661.8,4660.9,4.195]
[1756305316370,0.02,4661.8,4660.7,1.651]
[1756305316371,2.14546234,4661.0,4660.7,1.651]
[1756305317011,2.14546495,4661.0,4660.7,1.651]
[1756305317304,0.02,4661.8,4660.7,1.651]
[1756305317516,2.14532058,4661.4,4660.7,1.651]
[1756305317836,0.02,4661.8,4660.7,1.651]
[1756305317837,0.02,4661.8,4660.7,1.94613096]
[1756305318039,2.14514018,4661.7,4660.7,4.09172313]
[1756305318249,0.02,4661.8,4660.7,1.651]
[1756305318411,0.02,4661.8,4660.2,4.189]
[1756305318619,0.02,4661.8,4660.3,1.65]
[1756305318923,0.02,4661.8,4660.3,1.67145784]
[1756305319123,0.02,4661.8,4660.3,2.25750362]
[1756305319443,2.14514018,4661.7,4660.7,2.14558299]
[1756305319740,0.35591045,4661.8,4661.7,2.14514018]
[1756305320039,0.02,4661.8,4661.7,8.00959158]
[1756305320341,0.02,4661.8,4661.7,3.79514018]
[1756305320631,0.02,4661.8,4661.7,8.58317532]
[1756305320836,0.02,4661.8,4661.7,4.38917532]
[1756305321135,0.02,4661.8,4661.7,8.68637532]
[1756305321342,1e-08,4661.8,4661.7,11.68637532]
[1756305321511,0.02,4663.8,4662.7,2.14468012]
[1756305321512,1e-08,4662.8,4662.7,2.14468012]
[1756305321715,1e-08,4662.8,4662.7,17.01814813]
[1756305321903,1e-08,4662.8,4662.7,17.12534813]
[1756305322533,0.02,4663.8,4662.7,17.12534813]
[1756305322534,1e-08,4663.8,4663.7,2.80422025]
[1756305322736,1e-08,4664.4,4664.3,2.14394442]
[1756305322899,1e-08,4664.4,4664.3,10.08218026]
[1756305323099,1e-08,4664.4,4664.3,10.16794082]
[1756305323336,1e-08,4664.4,4664.3,10.16494082]
[1756305323745,1e-08,4664.4,4664.3,5.97994082]
[1756305323916,1e-08,4664.4,4664.3,10.82394082]
[1756305324443,0.1072,4666.6,4665.7,2.14330111]
[1756305324444,1e-08,4665.8,4665.7,2.14330111]
[1756305324621,1e-08,4665.8,4665.7,11.85063122]
[1756305324815,1e-08,4665.8,4665.7,7.00763122]
[1756305325043,0.02,4666.8,4665.7,5.835]
[1756305325215,0.02,4666.8,4665.7,5.9422]
[1756305325414,0.02,4666.8,4665.7,5.835]
[1756305325739,2.14311807,4666.1,4665.7,1.65]
[1756305325937,0.02,4666.8,4665.7,1.65]
[1756305326108,2.14321162,4665.9,4665.7,1.65]
[1756305326308,0.02,4666.8,4665.7,1.65]
[1756305326507,0.02,4666.8,4665.8,0.1072]
[1756305326812,0.02,4666.8,4666.0,2.14315245]
[1756305327020,0.02,4666.8,4665.7,3.7932731]
[1756305327021,2.14307396,4666.2,4665.7,1.65]
[1756305327223,0.2143074,4666.1,4665.7,1.65]
[1756305327516,2.14306253,4666.3,4665.8,4.179]
[1756305327721,2.14320924,4665.9,4665.8,4.179]
[1756305327922,0.02,4666.8,4665.8,4.179]
[1756305328139,0.02,4666.8,4665.9,0.02143209]
[1756305328449,0.02,4666.8,4666.7,2.25004183]
[1756305328604,0.02,4666.8,4666.7,8.07904183]
[1756305328811,0.02,4666.8,4666.7,8.24006968]
[1756305329103,0.02,4666.8,4666.7,4.06006968]
[1756305329328,0.02,4666.8,4666.7,8.23906968]
[1756305329737,0.02,4666.8,4666.7,1.91722785]
[1756305329943,0.02,4666.8,4666.7,7.96684183]
[1756305330148,0.02,4666.8,4666.7,8.23594551]
[1756305330354,0.02,4666.8,4666.7,4.06094551]
[1756305330506,0.02,4666.8,4666.7,8.23494551]
[1756305330710,0.02,4666.8,4666.7,1.91810368]
[1756305330912,0.02,4666.8,4666.7,5.827]
[1756305331220,0.02,4666.8,4666.7,7.96984183]
[1756305331552,0.02,4666.8,4666.5,4.178]
[1756305331943,0.02,4666.8,4666.7,2.14284183]
[1756305332130,0.02,4666.8,4666.5,6.32089821]
[1756305332331,0.02,4666.8,4666.7,2.14284183]
[1756305332842,0.0192,4666.8,4666.5,4.178]
[1756305333051,0.0192,4666.8,4666.5,4.172]
[1756305333211,0.0192,4666.8,4665.8,1.649]
[1756305333413,2.14307222,4666.2,4665.8,1.649]
[1756305333611,2.14307222,4666.2,4665.6,1.668]
[1756305333612,2.14321739,4665.9,4665.6,1.668]
[1756305333807,0.21430722,4666.1,4665.1,1.649]
[1756305334011,0.0192,4666.8,4665.1,1.649]
[1756305334243,0.0192,4666.8,4665.8,0.02]
[1756305334746,0.0192,4666.8,4665.8,4.19]
[1756305334949,2.14290058,4666.6,4665.8,4.19]
[1756305335124,2.14284183,4666.7,4665.8,4.19]
[1756305335322,0.21620418,4666.6,4665.8,4.187]
[1756305335545,2.14293367,4666.5,4665.8,0.02]
[1756305335732,2.14320924,4665.9,4665.8,0.02]
[1756305335930,2.14318203,4666.0,4665.8,0.02]
[1756305336135,2.14320924,4665.9,4665.8,0.02]
[1756305336638,2.16200849,4666.8,4665.8,0.02]
[1756305336841,0.0192,4666.8,4665.8,0.02]
[1756305337028,2.14284183,4666.7,4665.9,0.1072]
[1756305337226,0.0192,4666.8,4665.9,0.1072]
[1756305337619,0.0192,4666.8,4666.0,4.166]
[1756305338159,0.0192,4666.8,4666.0,6.30915769]
[1756305338313,0.0192,4666.8,4666.2,0.1072]
[1756305338517,0.0192,4666.8,4666.6,2.14287769]
[1756305338719,0.0192,4666.8,4666.7,6.30584183]
[1756305338920,0.0192,4666.8,4666.7,4.163]
[1756305339350,0.0192,4666.8,4666.7,6.30584183]
[1756305339518,0.0192,4666.8,4666.5,0.1072]
[1756305339715,0.0192,4666.8,4666.6,4.158]
[1756305339949,0.0192,4666.8,4666.3,1.649]
[1756305340136,0.0192,4666.8,4666.4,4.158]
[1756305340662,0.0192,4666.8,4665.5,4.157]
[1756305340817,0.0192,4666.8,4665.6,2.14334705]
[1756305341022,0.0192,4666.8,4665.5,4.157]
[1756305341519,2.14292829,4666.6,4665.5,4.157]
[1756305341789,2.14292829,4666.6,4665.8,2.14324074]
[1756305341968,0.0192,4666.8,4665.8,2.14322454]
[1756305342170,0.0192,4666.8,4665.5,4.157]
[1756305342359,0.0192,4666.8,4666.7,2.14284183]
[1756305342594,0.0192,4666.8,4666.7,6.30284183]
[1756305342900,0.0192,4666.8,4666.5,3.79190316]
[1756305343106,0.0192,4666.8,4666.5,1.649]
[1756305343303,0.0192,4666.8,4666.6,4.158]
[1756305343503,0.0192,4666.8,4666.5,1.649]
[1756305343659,0.0192,4666.8,4666.6,4.156]
[1756305344303,0.0192,4666.8,4666.5,1.649]
[1756305344499,0.0192,4666.8,4666.7,4.153]
[1756305344701,0.0192,4666.8,4666.5,1.649]
[1756305345065,0.0192,4666.8,4666.1,4.15]
[1756305345304,0.0212,4666.8,4666.1,5.799]
[1756305346399,0.0212,4666.8,4666.1,1.649]
[1756305346583,0.21639833,4666.7,4665.3,0.001]
[1756305346784,2.1431202,4666.1,4665.4,1.682]
[1756305346971,0.0212,4666.8,4665.4,1.682]
[1756305347174,2.14340263,4665.5,4665.4,3.28]
[1756305347369,2.14340263,4665.5,4665.3,0.001]
[1756305347370,2.14343893,4665.4,4665.3,0.001]
[1756305347595,2.34251438,4665.4,4665.3,0.001]
[1756305348296,2.57676582,4665.4,4665.3,0.001]
[1756305348996,2.77620561,4665.4,4665.3,0.001]
[1756305349196,2.91278884,4665.4,4665.3,0.001]
[1756305349387,2.67854103,4665.4,4665.3,0.001]
[1756305349589,0.5351021,4665.4,4665.3,0.001]
[1756305349897,0.33565868,4665.4,4665.3,0.001]
[1756305350368,2.47909761,4665.4,4665.3,0.001]
[1756305350569,0.33565868,4665.4,4665.3,0.001]
[1756305350767,0.53559396,4665.4,4665.3,0.001]
[1756305351300,2.14320673,4666.0,4665.3,0.001]
[1756305351463,2.14321218,4665.9,4665.3,0.001]
[1756305351664,2.14307337,4666.2,4665.4,2.14343893]
[1756305351973,2.14302779,4666.3,4665.4,2.14343704]
[1756305352193,2.14329795,4665.8,4665.3,0.001]
[1756305352587,0.33560085,4666.5,4665.3,0.001]